[Event "Early-Titled-Tuesday-Blitz-January-23-2024"]
[Site "Chess.com"]
[Date "2024.01.23"]
[Round "11"]
[White "StankovicIvan"]
[Black "Egor_Koshulyan"]
[Result "1-0"]
[WhiteElo "2543"]
[BlackElo "2684"]
[TimeControl "180+1"]
[EndTime "10:07:40 PST"]
[Termination "StankovicIvan won by resignation"]

1. e4 {[%clk 0:02:59.4]} 1... c5 {[%clk 0:02:55.2]} 2. c4 {[%clk 0:02:59.1]}
2... Nc6 {[%clk 0:02:54]} 3. Nc3 {[%clk 0:02:59.7]} 3... g6 {[%clk 0:02:54.3]}
4. g3 {[%clk 0:03:00.2]} 4... Bg7 {[%clk 0:02:55.2]} 5. Bg2 {[%clk 0:03:00.9]}
5... e6 {[%clk 0:02:55.4]} 6. Nge2 {[%clk 0:03:01.4]} 6... Nge7 {[%clk
0:02:56.3]} 7. d3 {[%clk 0:03:02.1]} 7... O-O {[%clk 0:02:57.2]} 8. Be3 {[%clk
0:03:02.7]} 8... d6 {[%clk 0:02:58.1]} 9. d4 {[%clk 0:03:03]} 9... cxd4 {[%clk
0:02:57.5]} 10. Nxd4 {[%clk 0:03:03.9]} 10... Bd7 {[%clk 0:02:55.4]} 11. O-O
{[%clk 0:03:03.7]} 11... Nxd4 {[%clk 0:02:53]} 12. Bxd4 {[%clk 0:03:03.6]} 12...
Bc6 {[%clk 0:02:53.9]} 13. Rc1 {[%clk 0:03:01.3]} 13... Qd7 {[%clk 0:02:54.1]}
14. Bxg7 {[%clk 0:02:55.9]} 14... Kxg7 {[%clk 0:02:55]} 15. Qd4+ {[%clk
0:02:56.2]} 15... Kg8 {[%clk 0:02:55.5]} 16. Rfd1 {[%clk 0:02:55.8]} 16... Rfd8
{[%clk 0:02:51.7]} 17. Qf6 {[%clk 0:02:50.8]} 17... Qe8 {[%clk 0:02:40.1]} 18.
Rd2 {[%clk 0:02:45.1]} 18... Rd7 {[%clk 0:02:34.7]} 19. Rcd1 {[%clk 0:02:44.9]}
19... Rad8 {[%clk 0:02:35.2]} 20. h4 {[%clk 0:02:42.7]} 20... h5 {[%clk
0:02:34.4]} 21. b3 {[%clk 0:02:38]} 21... Qf8 {[%clk 0:02:34.7]} 22. Qf4 {[%clk
0:02:31.4]} 22... Qg7 {[%clk 0:02:25.5]} 23. Qe3 {[%clk 0:02:07.7]} 23... b6
{[%clk 0:02:23.1]} 24. Rd3 {[%clk 0:01:44.5]} 24... Qe5 {[%clk 0:02:21.7]} 25.
f4 {[%clk 0:01:40.7]} 25... Qc5 {[%clk 0:02:21.5]} 26. Kf2 {[%clk 0:01:40.2]}
26... a6 {[%clk 0:02:15]} 27. Kg1 {[%clk 0:01:37.7]} 27... b5 {[%clk 0:02:14]}
28. cxb5 {[%clk 0:01:31.8]} 28... axb5 {[%clk 0:02:14.9]} 29. Kh2 {[%clk
0:01:15.1]} 29... b4 {[%clk 0:02:11.5]} 30. Ne2 {[%clk 0:01:00.9]} 30... Bb5
{[%clk 0:02:11.2]} 31. Qxc5 {[%clk 0:00:55.7]} 31... dxc5 {[%clk 0:02:12.1]} 32.
Rxd7 {[%clk 0:00:55.9]} 32... Rxd7 {[%clk 0:02:12.4]} 33. Rxd7 {[%clk
0:00:55.9]} 33... Bxd7 {[%clk 0:02:13.3]} 34. Kg1 {[%clk 0:00:52]} 34... Bb5
{[%clk 0:02:10.4]} 35. Kf2 {[%clk 0:00:51.9]} 35... c4 {[%clk 0:02:11.1]} 36.
Nd4 {[%clk 0:00:43.9]} 36... c3 {[%clk 0:02:11.1]} 37. Ke3 {[%clk 0:00:38.3]}
37... Ba6 {[%clk 0:02:11.1]} 38. Nc2 {[%clk 0:00:34.1]} 38... Nc6 {[%clk
0:01:53.9]} 39. e5 {[%clk 0:00:34.2]} 39... Ne7 {[%clk 0:01:29.9]} 40. Nxb4
{[%clk 0:00:33.8]} 40... Bb5 {[%clk 0:01:30.6]} 41. a4 {[%clk 0:00:30.1]} 41...
Nf5+ {[%clk 0:01:30.1]} 42. Kf2 {[%clk 0:00:27]} 42... Bd7 {[%clk 0:01:29.6]}
43. Be4 {[%clk 0:00:26]} 43... Nd4 {[%clk 0:01:28.2]} 44. Bc2 {[%clk 0:00:20.7]}
44... Bc6 {[%clk 0:01:15.5]} 45. Ke3 {[%clk 0:00:20.7]} 45... Nxc2+ {[%clk
0:01:15.9]} 46. Nxc2 {[%clk 0:00:20.4]} 46... Bd5 {[%clk 0:01:16.8]} 47. b4
{[%clk 0:00:19.8]} 47... Bb3 {[%clk 0:01:16.8]} 48. Kd3 {[%clk 0:00:15.2]} 48...
Bxa4 {[%clk 0:01:16.6]} 49. Kxc3 {[%clk 0:00:15.8]} 49... f6 {[%clk 0:01:16.2]}
50. Nd4 {[%clk 0:00:12.9]} 50... Kf7 {[%clk 0:01:16.4]} 51. b5 {[%clk
0:00:12.3]} 51... fxe5 {[%clk 0:01:13.1]} 52. fxe5 {[%clk 0:00:13.2]} 52... Ke7
{[%clk 0:01:10.2]} 53. Kb4 {[%clk 0:00:13.8]} 53... Bd1 {[%clk 0:01:09.6]} 54.
Ka5 {[%clk 0:00:12.8]} 54... Kd7 {[%clk 0:01:09.7]} 55. b6 {[%clk 0:00:11.3]}
55... Bg4 {[%clk 0:00:58.7]} 56. Ka6 {[%clk 0:00:11.6]} 56... Bh3 {[%clk
0:00:59.4]} 57. Ka7 {[%clk 0:00:11.8]} 57... Bf1 {[%clk 0:01:00.1]} 58. b7
{[%clk 0:00:11.7]} 1-0

[Event "Early-Titled-Tuesday-Blitz-January-23-2024"]
[Site "Chess.com"]
[Date "2024.01.23"]
[Round "11"]
[White "R2D2PTY"]
[Black "jcmesafischer"]
[Result "0-1"]
[WhiteElo "2251"]
[BlackElo "2332"]
[TimeControl "180+1"]
[EndTime "10:07:40 PST"]
[Termination "jcmesafischer won by resignation"]

1. e4 {[%clk 0:03:00.9]} 1... c5 {[%clk 0:02:58.8]} 2. Nc3 {[%clk 0:02:59.1]}
2... a6 {[%clk 0:02:41.3]} 3. d4 {[%clk 0:02:59]} 3... cxd4 {[%clk 0:02:41.2]}
4. Qxd4 {[%clk 0:02:59.9]} 4... d6 {[%clk 0:02:41.2]} 5. b3 {[%clk 0:02:57.6]}
5... Nc6 {[%clk 0:02:39.4]} 6. Qd2 {[%clk 0:02:57.4]} 6... b5 {[%clk 0:02:31.2]}
7. Bb2 {[%clk 0:02:57.1]} 7... Bb7 {[%clk 0:02:31.8]} 8. O-O-O {[%clk
0:02:56.4]} 8... Rc8 {[%clk 0:02:31.7]} 9. Kb1 {[%clk 0:02:54]} 9... Nf6 {[%clk
0:02:28.9]} 10. f3 {[%clk 0:02:54]} 10... g6 {[%clk 0:02:25.9]} 11. Nd5 {[%clk
0:02:50.7]} 11... Ne5 {[%clk 0:02:20.1]} 12. Nxf6+ {[%clk 0:02:06.2]} 12... exf6
{[%clk 0:02:21]} 13. f4 {[%clk 0:01:56.8]} 13... Nd7 {[%clk 0:01:41.1]} 14. Bd3
{[%clk 0:01:27.1]} 14... Qc7 {[%clk 0:01:34.6]} 15. Nf3 {[%clk 0:01:18.2]} 15...
Be7 {[%clk 0:01:15.4]} 16. e5 {[%clk 0:01:09.4]} 16... dxe5 {[%clk 0:01:08.2]}
17. fxe5 {[%clk 0:01:07.4]} 17... O-O {[%clk 0:01:07.8]} 18. Bxg6 {[%clk
0:00:27.6]} 18... hxg6 {[%clk 0:00:54.1]} 19. Qxd7 {[%clk 0:00:27.9]} 19...
Qxc2+ {[%clk 0:00:53.5]} 20. Ka1 {[%clk 0:00:28.1]} 20... Rc7 {[%clk 0:00:52.6]}
21. Qd4 {[%clk 0:00:20.5]} 21... Bxf3 {[%clk 0:00:43.8]} 22. gxf3 {[%clk
0:00:16.3]} 22... Rd8 {[%clk 0:00:42.9]} 23. Qg1 {[%clk 0:00:12.2]} 23... Rcd7
{[%clk 0:00:17.4]} 24. Rc1 {[%clk 0:00:10.3]} 24... Qf5 {[%clk 0:00:14.7]} 25.
h4 {[%clk 0:00:08.9]} 25... fxe5 {[%clk 0:00:14.1]} 26. h5 {[%clk 0:00:09.2]}
26... Bf6 {[%clk 0:00:13.1]} 27. hxg6 {[%clk 0:00:09.4]} 27... fxg6 {[%clk
0:00:14]} 28. Rh6 {[%clk 0:00:08.9]} 28... Rg7 {[%clk 0:00:12.4]} 29. Rc6 {[%clk
0:00:06.4]} 29... Qxf3 {[%clk 0:00:10.6]} 30. Rc3 {[%clk 0:00:05.3]} 30... Rd1+
{[%clk 0:00:10.5]} 31. Rc1 {[%clk 0:00:04.3]} 31... Rxg1 {[%clk 0:00:10.3]} 32.
Rxg1 {[%clk 0:00:05.2]} 32... e4 {[%clk 0:00:10.5]} 33. Bxf6 {[%clk 0:00:02.3]}
33... Qxf6+ {[%clk 0:00:11.4]} 34. Kb1 {[%clk 0:00:02.8]} 34... e3 {[%clk
0:00:09.8]} 35. Rhh1 {[%clk 0:00:03.2]} 35... e2 {[%clk 0:00:09.7]} 36. Rc1
{[%clk 0:00:03.8]} 36... Qf5+ {[%clk 0:00:09.8]} 37. Ka1 {[%clk 0:00:03.7]}
37... Rd7 {[%clk 0:00:10]} 38. Rc8+ {[%clk 0:00:03.4]} 38... Kg7 {[%clk
0:00:10.4]} 39. Rch8 {[%clk 0:00:03.8]} 39... Qe5+ {[%clk 0:00:10.4]} 40. Kb1
{[%clk 0:00:03.5]} 40... Rd1+ {[%clk 0:00:11]} 0-1

[Event "Early-Titled-Tuesday-Blitz-January-23-2024"]
[Site "Chess.com"]
[Date "2024.01.23"]
[Round "11"]
[White "Practical-Play"]
[Black "RCone"]
[Result "1-0"]
[WhiteElo "2520"]
[BlackElo "2416"]
[TimeControl "180+1"]
[EndTime "10:07:41 PST"]
[Termination "Practical-Play won by checkmate"]

1. e4 {[%clk 0:02:43.3]} 1... d6 {[%clk 0:03:00.9]} 2. d4 {[%clk 0:02:42]} 2...
Nf6 {[%clk 0:03:00.6]} 3. Nc3 {[%clk 0:02:40.6]} 3... g6 {[%clk 0:03:01.2]} 4.
f4 {[%clk 0:02:40.4]} 4... Bg7 {[%clk 0:03:00.7]} 5. Nf3 {[%clk 0:02:40.8]} 5...
O-O {[%clk 0:03:01.2]} 6. Be3 {[%clk 0:02:39]} 6... Na6 {[%clk 0:03:01.5]} 7. h3
{[%clk 0:02:36.9]} 7... c5 {[%clk 0:03:01.5]} 8. dxc5 {[%clk 0:02:34.4]} 8...
Nxc5 {[%clk 0:03:01.4]} 9. e5 {[%clk 0:02:17.2]} 9... Nfe4 {[%clk 0:02:56.5]}
10. Nxe4 {[%clk 0:02:14.9]} 10... Nxe4 {[%clk 0:02:57.4]} 11. Bd3 {[%clk
0:02:08.3]} 11... Nc5 {[%clk 0:02:48.6]} 12. Bxc5 {[%clk 0:01:51.4]} 12... dxc5
{[%clk 0:02:49.5]} 13. h4 {[%clk 0:01:46]} 13... Qb6 {[%clk 0:02:29.6]} 14. Rb1
{[%clk 0:01:35.5]} 14... Qb4+ {[%clk 0:02:29]} 15. Qd2 {[%clk 0:01:28.6]} 15...
Bg4 {[%clk 0:02:23.8]} 16. c3 {[%clk 0:01:24.1]} 16... Qa5 {[%clk 0:02:23.5]}
17. h5 {[%clk 0:01:15.7]} 17... Rad8 {[%clk 0:02:17]} 18. hxg6 {[%clk
0:01:14.4]} 18... hxg6 {[%clk 0:02:16.7]} 19. Qc2 {[%clk 0:01:02]} 19... Bxf3
{[%clk 0:02:01.2]} 20. gxf3 {[%clk 0:01:00.8]} 20... c4 {[%clk 0:01:55.5]} 21.
Bxc4 {[%clk 0:00:34.7]} 21... Qc5 {[%clk 0:01:52.8]} 22. Qh2 {[%clk 0:00:20]}
22... Qe3+ {[%clk 0:01:47.6]} 23. Be2 {[%clk 0:00:18.6]} 23... Rfe8 {[%clk
0:01:42]} 24. f5 {[%clk 0:00:11.6]} 24... gxf5 {[%clk 0:01:19.1]} 25. Qh7+
{[%clk 0:00:09.9]} 25... Kf8 {[%clk 0:01:19]} 26. Qxf5 {[%clk 0:00:09.4]} 26...
e6 {[%clk 0:01:03.1]} 27. Qe4 {[%clk 0:00:02.7]} 27... Qd2+ {[%clk 0:01:01.8]}
28. Kf2 {[%clk 0:00:02.4]} 28... Rd5 {[%clk 0:00:57.7]} 29. Qb4+ {[%clk
0:00:02.4]} 29... Re7 {[%clk 0:00:53.7]} 30. Rbd1 {[%clk 0:00:02.7]} 30... Qg5
{[%clk 0:00:49.2]} 31. f4 {[%clk 0:00:02.7]} 31... Qf5 {[%clk 0:00:38.2]} 32.
Bf3 {[%clk 0:00:02.9]} 32... Rd3 {[%clk 0:00:30.1]} 33. Be2 {[%clk 0:00:02.3]}
33... Rd2 {[%clk 0:00:17]} 34. Rxd2 {[%clk 0:00:02.4]} 34... Ke8 {[%clk
0:00:14.8]} 35. Rhd1 {[%clk 0:00:02]} 35... Qxf4+ {[%clk 0:00:14.1]} 36. Qxf4
{[%clk 0:00:01.5]} 36... Bxe5 {[%clk 0:00:14.1]} 37. Bb5+ {[%clk 0:00:02.1]}
37... Kf8 {[%clk 0:00:13.9]} 38. Qxe5 {[%clk 0:00:03]} 38... f6 {[%clk 0:00:14]}
39. Rd8+ {[%clk 0:00:03.6]} 39... Kf7 {[%clk 0:00:14.1]} 40. Qg3 {[%clk
0:00:04.5]} 40... e5 {[%clk 0:00:14.1]} 41. Qg8# {[%clk 0:00:05.3]} 1-0

[Event "Early-Titled-Tuesday-Blitz-January-23-2024"]
[Site "Chess.com"]
[Date "2024.01.23"]
[Round "11"]
[White "Fandorine"]
[Black "Janosik"]
[Result "0-1"]
[WhiteElo "2971"]
[BlackElo "2867"]
[TimeControl "180+1"]
[EndTime "10:07:44 PST"]
[Termination "Janosik won on time"]

1. d4 {[%clk 0:03:00.9]} 1... d5 {[%clk 0:02:59.7]} 2. Nf3 {[%clk 0:03:00.4]}
2... Nf6 {[%clk 0:02:59.4]} 3. c4 {[%clk 0:02:59.3]} 3... e6 {[%clk 0:02:59.3]}
4. g3 {[%clk 0:02:59.4]} 4... Bb4+ {[%clk 0:02:58.8]} 5. Nbd2 {[%clk 0:02:59.2]}
5... O-O {[%clk 0:02:57.9]} 6. Bg2 {[%clk 0:02:59.4]} 6... b6 {[%clk 0:02:58.5]}
7. O-O {[%clk 0:02:58.5]} 7... Bb7 {[%clk 0:02:59.1]} 8. Ne5 {[%clk 0:02:58.9]}
8... Re8 {[%clk 0:02:57.6]} 9. Ndf3 {[%clk 0:02:57.2]} 9... h6 {[%clk
0:02:57.8]} 10. Qc2 {[%clk 0:02:54.8]} 10... Bf8 {[%clk 0:02:52.6]} 11. Rd1
{[%clk 0:02:47.1]} 11... c5 {[%clk 0:02:51.3]} 12. h4 {[%clk 0:02:38.9]} 12...
Na6 {[%clk 0:02:45.4]} 13. a3 {[%clk 0:02:38]} 13... Rc8 {[%clk 0:02:42.5]} 14.
dxc5 {[%clk 0:02:31.7]} 14... bxc5 {[%clk 0:02:37.9]} 15. g4 {[%clk 0:02:16.5]}
15... Ne4 {[%clk 0:02:18.5]} 16. Nxf7 {[%clk 0:02:13.4]} 16... Qf6 {[%clk
0:01:52]} 17. N7e5 {[%clk 0:02:11]} 17... Bd6 {[%clk 0:01:47.9]} 18. cxd5 {[%clk
0:01:31.2]} 18... exd5 {[%clk 0:01:44.8]} 19. Qb3 {[%clk 0:01:29.8]} 19... Rc7
{[%clk 0:01:12.6]} 20. Rxd5 {[%clk 0:01:15.1]} 20... c4 {[%clk 0:00:57]} 21. Qa4
{[%clk 0:01:08.4]} 21... Rf8 {[%clk 0:00:44.9]} 22. Rb5 {[%clk 0:00:55.6]} 22...
c3 {[%clk 0:00:19.7]} 23. Qb3+ {[%clk 0:00:26.1]} 23... Kh8 {[%clk 0:00:17.9]}
24. g5 {[%clk 0:00:23.4]} 24... hxg5 {[%clk 0:00:09.7]} 25. Bxg5 {[%clk
0:00:16.2]} 25... Qf5 {[%clk 0:00:09.3]} 26. Nd3 {[%clk 0:00:07]} 26... Qg4
{[%clk 0:00:07]} 27. Rxb7 {[%clk 0:00:06.4]} 27... Nac5 {[%clk 0:00:05.4]} 28.
Nxc5 {[%clk 0:00:06]} 28... Nxc5 {[%clk 0:00:06.3]} 29. Qxc3 {[%clk 0:00:04.8]}
29... Rxb7 {[%clk 0:00:05.9]} 30. Rd1 {[%clk 0:00:03.9]} 30... Ne4 {[%clk
0:00:06.1]} 31. Qd4 {[%clk 0:00:03.5]} 31... Bc5 {[%clk 0:00:06.3]} 32. Qd5
{[%clk 0:00:02.6]} 32... Bxf2+ {[%clk 0:00:06.6]} 33. Kh1 {[%clk 0:00:03]} 33...
Ng3+ {[%clk 0:00:06.9]} 34. Kh2 {[%clk 0:00:02.9]} 34... Nxe2 {[%clk 0:00:07.5]}
35. Qxb7 {[%clk 0:00:01]} 35... Bg3+ {[%clk 0:00:07.5]} 36. Kh1 {[%clk
0:00:01.5]} 36... Be5 {[%clk 0:00:07.2]} 37. Nxe5 {[%clk 0:00:01.2]} 37... Qg3
{[%clk 0:00:06.4]} 0-1

[Event "Early-Titled-Tuesday-Blitz-January-23-2024"]
[Site "Chess.com"]
[Date "2024.01.23"]
[Round "11"]
[White "M1711"]
[Black "supereagles1201"]
[Result "0-1"]
[WhiteElo "2634"]
[BlackElo "2410"]
[TimeControl "180+1"]
[EndTime "10:07:45 PST"]
[Termination "supereagles1201 won by checkmate"]

1. e4 {[%clk 0:03:00.9]} 1... c5 {[%clk 0:02:59.8]} 2. Nc3 {[%clk 0:03:00.8]}
2... Nc6 {[%clk 0:02:59.2]} 3. f4 {[%clk 0:03:00.9]} 3... g6 {[%clk 0:02:58.5]}
4. Nf3 {[%clk 0:03:01.3]} 4... Bg7 {[%clk 0:02:59]} 5. Bb5 {[%clk 0:02:53.3]}
5... Nd4 {[%clk 0:02:58.6]} 6. O-O {[%clk 0:02:49]} 6... Nxb5 {[%clk 0:02:58.1]}
7. Nxb5 {[%clk 0:02:49.3]} 7... d5 {[%clk 0:02:58.7]} 8. exd5 {[%clk 0:02:47.7]}
8... a6 {[%clk 0:02:58.8]} 9. Nc3 {[%clk 0:02:47.3]} 9... Nf6 {[%clk 0:02:59.4]}
10. Qe2 {[%clk 0:02:24.8]} 10... Nxd5 {[%clk 0:02:55.7]} 11. Ne4 {[%clk
0:02:24.6]} 11... b6 {[%clk 0:02:52.1]} 12. d3 {[%clk 0:02:16.9]} 12... Bb7
{[%clk 0:02:50.3]} 13. f5 {[%clk 0:02:12]} 13... O-O {[%clk 0:02:39.7]} 14. fxg6
{[%clk 0:02:10.1]} 14... hxg6 {[%clk 0:02:39.7]} 15. Nfg5 {[%clk 0:01:58.5]}
15... Qd7 {[%clk 0:02:17]} 16. h3 {[%clk 0:01:25.9]} 16... f5 {[%clk 0:02:05.5]}
17. Nf2 {[%clk 0:01:10.8]} 17... e5 {[%clk 0:02:03.5]} 18. h4 {[%clk 0:01:03.3]}
18... Rae8 {[%clk 0:01:55.2]} 19. Nfh3 {[%clk 0:01:01.2]} 19... Nf4 {[%clk
0:01:46.9]} 20. Nxf4 {[%clk 0:00:55]} 20... exf4 {[%clk 0:01:46.9]} 21. Qd1
{[%clk 0:00:55.7]} 21... Bd4+ {[%clk 0:01:43.2]} 22. Kh2 {[%clk 0:00:54.5]}
22... Qd5 {[%clk 0:01:41.7]} 23. Qf3 {[%clk 0:00:40.4]} 23... Qxf3 {[%clk
0:01:33.1]} 24. Nxf3 {[%clk 0:00:39.4]} 24... Re2 {[%clk 0:01:16.5]} 25. Bxf4
{[%clk 0:00:34.9]} 25... Rxc2 {[%clk 0:01:08.8]} 26. Rae1 {[%clk 0:00:30.1]}
26... Bxf3 {[%clk 0:00:56.9]} 27. Rxf3 {[%clk 0:00:29.5]} 27... Rxb2 {[%clk
0:00:55]} 28. Rg3 {[%clk 0:00:23.7]} 28... Kf7 {[%clk 0:00:51.6]} 29. Bd6 {[%clk
0:00:20.5]} 29... Bf2 {[%clk 0:00:32.8]} 30. Re7+ {[%clk 0:00:13.9]} 30... Kf6
{[%clk 0:00:33]} 31. Rf3 {[%clk 0:00:12.1]} 31... Rd8 {[%clk 0:00:28.8]} 32.
Be5+ {[%clk 0:00:08.9]} 32... Kxe7 {[%clk 0:00:29]} 33. Bxb2 {[%clk 0:00:09.8]}
33... Bd4 {[%clk 0:00:28.8]} 34. Bc1 {[%clk 0:00:09.8]} 34... Ke6 {[%clk
0:00:27.9]} 35. g3 {[%clk 0:00:07.1]} 35... b5 {[%clk 0:00:27.5]} 36. Kg2 {[%clk
0:00:07.1]} 36... c4 {[%clk 0:00:27.8]} 37. dxc4 {[%clk 0:00:07.4]} 37... bxc4
{[%clk 0:00:28.7]} 38. Bd2 {[%clk 0:00:06.9]} 38... Rb8 {[%clk 0:00:27.4]} 39.
Kf1 {[%clk 0:00:04]} 39... Rb2 {[%clk 0:00:27]} 40. Ke1 {[%clk 0:00:04.1]} 40...
Rxa2 {[%clk 0:00:27.2]} 41. Kd1 {[%clk 0:00:03]} 41... Ke5 {[%clk 0:00:27.5]}
42. Rf1 {[%clk 0:00:02.1]} 42... Ke4 {[%clk 0:00:27.5]} 43. Bc1 {[%clk
0:00:01.7]} 43... c3 {[%clk 0:00:25.7]} 44. Rh1 {[%clk 0:00:01.3]} 44... Rg2
{[%clk 0:00:24.4]} 45. Re1+ {[%clk 0:00:01.3]} 45... Kd3 {[%clk 0:00:24.3]} 46.
Rf1 {[%clk 0:00:01.5]} 46... c2+ {[%clk 0:00:24.5]} 47. Ke1 {[%clk 0:00:02]}
47... Bc3+ {[%clk 0:00:24.7]} 48. Bd2 {[%clk 0:00:02]} 48... Bxd2# {[%clk
0:00:24.9]} 0-1

[Event "Early-Titled-Tuesday-Blitz-January-23-2024"]
[Site "Chess.com"]
[Date "2024.01.23"]
[Round "11"]
[White "santosalberto1987"]
[Black "AlexPapasimakopoulos"]
[Result "0-1"]
[WhiteElo "2566"]
[BlackElo "2750"]
[TimeControl "180+1"]
[EndTime "10:07:48 PST"]
[Termination "AlexPapasimakopoulos won by resignation"]

1. e4 {[%clk 0:03:00.9]} 1... e6 {[%clk 0:02:59.5]} 2. d4 {[%clk 0:03:00.9]}
2... d5 {[%clk 0:03:00.1]} 3. Nc3 {[%clk 0:03:01.2]} 3... Bb4 {[%clk 0:02:59.3]}
4. e5 {[%clk 0:03:00.6]} 4... c5 {[%clk 0:02:57]} 5. a3 {[%clk 0:03:00.5]} 5...
Bxc3+ {[%clk 0:02:57]} 6. bxc3 {[%clk 0:03:01.4]} 6... Nc6 {[%clk 0:02:55.6]} 7.
Nf3 {[%clk 0:03:00.3]} 7... Nge7 {[%clk 0:02:55.1]} 8. a4 {[%clk 0:03:00.3]}
8... Qa5 {[%clk 0:02:55.8]} 9. Qd2 {[%clk 0:02:59.9]} 9... cxd4 {[%clk
0:02:54.9]} 10. cxd4 {[%clk 0:02:59.8]} 10... Qxd2+ {[%clk 0:02:55.4]} 11. Bxd2
{[%clk 0:02:59.9]} 11... b6 {[%clk 0:02:44.6]} 12. a5 {[%clk 0:02:49.7]} 12...
Nxa5 {[%clk 0:02:39.2]} 13. Bxa5 {[%clk 0:02:50.6]} 13... bxa5 {[%clk
0:02:39.8]} 14. Rxa5 {[%clk 0:02:50.3]} 14... Bd7 {[%clk 0:02:37.4]} 15. Bd3
{[%clk 0:02:46.6]} 15... Nc6 {[%clk 0:02:37.5]} 16. Ra3 {[%clk 0:02:41.1]} 16...
Ke7 {[%clk 0:02:35.7]} 17. Kd2 {[%clk 0:02:40.9]} 17... Rhb8 {[%clk 0:02:36.1]}
18. Rha1 {[%clk 0:02:38.7]} 18... a5 {[%clk 0:02:36.3]} 19. Rb3 {[%clk
0:02:16.3]} 19... a4 {[%clk 0:02:25.6]} 20. Rxb8 {[%clk 0:02:14.5]} 20... Nxb8
{[%clk 0:02:26.5]} 21. c3 {[%clk 0:02:11.5]} 21... Nc6 {[%clk 0:02:25.3]} 22.
Ne1 {[%clk 0:02:08.6]} 22... Na5 {[%clk 0:02:25]} 23. Kc2 {[%clk 0:01:57.6]}
23... Rc8 {[%clk 0:02:18.5]} 24. Nf3 {[%clk 0:01:51.8]} 24... h6 {[%clk
0:02:14.8]} 25. Nd2 {[%clk 0:01:45.6]} 25... Ra8 {[%clk 0:02:04.6]} 26. Rb1
{[%clk 0:01:43.8]} 26... Kd8 {[%clk 0:01:52.1]} 27. Ra1 {[%clk 0:01:17.9]} 27...
Kc7 {[%clk 0:01:51.5]} 28. Ra2 {[%clk 0:01:13.8]} 28... Rb8 {[%clk 0:01:47.5]}
29. Rb2 {[%clk 0:01:11.5]} 29... Ra8 {[%clk 0:01:48.1]} 30. Ra2 {[%clk
0:01:11.7]} 30... f6 {[%clk 0:01:43.7]} 31. f4 {[%clk 0:01:11.3]} 31... f5
{[%clk 0:01:39.2]} 32. h3 {[%clk 0:01:10.5]} 32... g5 {[%clk 0:01:39.3]} 33.
fxg5 {[%clk 0:00:57.7]} 33... hxg5 {[%clk 0:01:40.2]} 34. c4 {[%clk 0:00:58.2]}
34... dxc4 {[%clk 0:01:31.8]} 35. Nxc4 {[%clk 0:00:59.1]} 35... Bc6 {[%clk
0:01:10.8]} 36. Nxa5 {[%clk 0:00:55.2]} 36... Rxa5 {[%clk 0:01:10.6]} 37. Kc3
{[%clk 0:00:55.7]} 37... Bd5 {[%clk 0:01:05.4]} 38. Bc4 {[%clk 0:00:55.4]} 38...
Kc6 {[%clk 0:01:02.6]} 39. Kb4 {[%clk 0:00:36.2]} 39... Bxc4 {[%clk 0:01:01.9]}
40. Kxc4 {[%clk 0:00:35.9]} 40... a3 {[%clk 0:00:58.3]} 41. g3 {[%clk
0:00:33.1]} 41... Ra4+ {[%clk 0:00:51.6]} 42. Kc3 {[%clk 0:00:21.5]} 42... Kd5
{[%clk 0:00:51.1]} 43. h4 {[%clk 0:00:21.9]} 43... Rxd4 {[%clk 0:00:34.4]} 44.
hxg5 {[%clk 0:00:19.6]} 44... Rg4 {[%clk 0:00:34.3]} 45. Rxa3 {[%clk 0:00:17.8]}
45... Rxg3+ {[%clk 0:00:34.3]} 46. Kb4 {[%clk 0:00:18.3]} 46... Rxa3 {[%clk
0:00:15.9]} 47. Kxa3 {[%clk 0:00:18.1]} 47... Kxe5 {[%clk 0:00:16.5]} 48. Kb4
{[%clk 0:00:18.3]} 48... f4 {[%clk 0:00:17]} 49. Kc3 {[%clk 0:00:18.4]} 49...
Kf5 {[%clk 0:00:17.2]} 0-1

[Event "Early-Titled-Tuesday-Blitz-January-23-2024"]
[Site "Chess.com"]
[Date "2024.01.23"]
[Round "11"]
[White "ViktoriyaTarasova"]
[Black "dmosesov"]
[Result "0-1"]
[WhiteElo "2296"]
[BlackElo "2581"]
[TimeControl "180+1"]
[EndTime "10:07:48 PST"]
[Termination "dmosesov won by checkmate"]

1. d4 {[%clk 0:03:00.9]} 1... Nf6 {[%clk 0:03:00.2]} 2. c4 {[%clk 0:03:00.7]}
2... c5 {[%clk 0:02:57.8]} 3. d5 {[%clk 0:03:00.8]} 3... e6 {[%clk 0:02:58]} 4.
Nc3 {[%clk 0:03:00.3]} 4... exd5 {[%clk 0:02:58.5]} 5. cxd5 {[%clk 0:03:00.8]}
5... d6 {[%clk 0:02:59.2]} 6. Nf3 {[%clk 0:03:01.2]} 6... g6 {[%clk 0:02:59.8]}
7. Bf4 {[%clk 0:03:01]} 7... a6 {[%clk 0:02:56.2]} 8. a4 {[%clk 0:03:00.6]} 8...
Bg7 {[%clk 0:02:54.3]} 9. h3 {[%clk 0:03:00.7]} 9... O-O {[%clk 0:02:53.5]} 10.
e3 {[%clk 0:03:01]} 10... Qe7 {[%clk 0:02:47.3]} 11. Nd2 {[%clk 0:02:58.9]}
11... Nbd7 {[%clk 0:02:40.2]} 12. Be2 {[%clk 0:02:57.9]} 12... Ne8 {[%clk
0:02:32.4]} 13. O-O {[%clk 0:02:55.9]} 13... f5 {[%clk 0:02:26.1]} 14. Qc2
{[%clk 0:02:53.6]} 14... Ne5 {[%clk 0:02:20.9]} 15. Rfe1 {[%clk 0:02:51.7]}
15... Bd7 {[%clk 0:02:11.3]} 16. Bh2 {[%clk 0:02:49.1]} 16... Rb8 {[%clk
0:01:51.6]} 17. a5 {[%clk 0:02:47.3]} 17... Kh8 {[%clk 0:01:44.4]} 18. Bf1
{[%clk 0:02:47.2]} 18... Nc7 {[%clk 0:01:44.1]} 19. Kh1 {[%clk 0:02:32.7]} 19...
b5 {[%clk 0:01:41.7]} 20. axb6 {[%clk 0:02:31.8]} 20... Rxb6 {[%clk 0:01:42]}
21. f4 {[%clk 0:02:32.5]} 21... Nf7 {[%clk 0:01:37.8]} 22. Nc4 {[%clk
0:02:26.1]} 22... Rb4 {[%clk 0:01:37.4]} 23. e4 {[%clk 0:02:22.5]} 23... fxe4
{[%clk 0:01:33.7]} 24. g4 {[%clk 0:01:38.1]} 24... Nb5 {[%clk 0:01:15.8]} 25.
Nxe4 {[%clk 0:01:30.4]} 25... Nd4 {[%clk 0:01:12.7]} 26. Qg2 {[%clk 0:01:19.9]}
26... Qd8 {[%clk 0:01:06.4]} 27. Nexd6 {[%clk 0:00:47.6]} 27... Nxd6 {[%clk
0:01:06.5]} 28. Nxd6 {[%clk 0:00:47.3]} 28... Bxg4 {[%clk 0:00:39.4]} 29. hxg4
{[%clk 0:00:46.2]} 29... Qxd6 {[%clk 0:00:33]} 30. Rxa6 {[%clk 0:00:46]} 30...
Qb8 {[%clk 0:00:17]} 31. Ra2 {[%clk 0:00:42.6]} 31... Rb3 {[%clk 0:00:15.3]} 32.
f5 {[%clk 0:00:29.4]} 32... Qb4 {[%clk 0:00:15.7]} 33. Re7 {[%clk 0:00:20.7]}
33... gxf5 {[%clk 0:00:13.5]} 34. d6 {[%clk 0:00:11.3]} 34... Nf3 {[%clk
0:00:10]} 35. gxf5 {[%clk 0:00:08.9]} 35... Bf6 {[%clk 0:00:09.7]} 36. Re6
{[%clk 0:00:04.7]} 36... Rg8 {[%clk 0:00:09]} 37. Qe2 {[%clk 0:00:04.2]} 37...
Qh4 {[%clk 0:00:07.6]} 38. Rxf6 {[%clk 0:00:02.6]} 38... Rg1# {[%clk 0:00:07.8]}
0-1